[Event "Ramat Gan Masters-A Winter 2023"]
[Site "Ramat Gan/ISR"]
[Date "2023.02.27"]
[Round "6.5"]
[White "Gurevich, Neria"]
[Black "Tashkinova, Sofiia"]
[Result "1/2-1/2"]
[Annotator "TA"]
[ECO "E11"]
[WhiteElo "1543"]
[BlackElo "1928"]
[PlyCount "125"]
[EventDate "2023.01.17"]
[EventType "swiss"]
[SourceTitle "playchess.com"]
[Source "ChessBase"]
[SourceQuality "1"]
[TimeControl "5400+30"]

{[%evp 23,125,12,14,16,24,25,24,10,12,0,6,-9,-7,-12,11,0,13,1,39,39,32,-36,-41,-35,0,0,0,-13,-5,-65,-62,-110,-83,-87,0,-39,81,-31,-42,-41,-49,-83,0,-253,-266,-337,212,-251,-250,-241,-236,-416,-181,-197,-206,-237,-245,-240,-242,-235,-244,-229,-230,-373,-358,-342,-305,-318,-270,-349,-141,-239,-235,-233,-223,-237,-218,-248,-179,-216,0,-238,-18,-15,0,-8,0,0,0,-8,0,0,0,0,0,0,0,0,0,0,0,0,0,0]} 1. d4 {[%emt 0:35:20]} Nf6 {[%emt 0:00:14]} 2. c4 {[%emt 0:00:13]} e6 {[%emt 0:00:04]} 3. Nf3 {[%emt 0:00:09]} Bb4+ {[%emt 0:00:07]} 4. Bd2 {[%emt 0:00:15]} Qe7 {[%emt 0:00:10]} 5. g3 {[%emt 0:00:28]} Nc6 {[%emt 0:00:12]} 6. Bg2 {[%emt 0:00:36]} Bxd2+ {[%emt 0:00:11]} 7. Nbxd2 {[%emt 0:00:10]} d6 {[%emt 0:00:15]} 8. O-O {[%emt 0:00:40]} a5 {[%emt 0:00:15]} 9. e4 {[%emt 0:00:41]} e5 {[%emt 0:00:11]} 10. d5 {[%emt 0:00:31]} Nb8 {[%emt 0:00:07]} 11. Ne1 {[%emt 0:00:38]} h5 {[%emt 0:00:20]} 12. h4 {[%emt 0:00:49]} O-O {[%emt 0:00:20]} 13. Nd3 {[%emt 0:01:08] E11: Bogo-Indian.} Bg4 {[%emt 0:00:23]} 14. f3 {[%emt 0:00:47]} Bd7 {[%emt 0:00:29]} 15. b3 {[%emt 0:02:20] White has an edge.} c6 {[%emt 0:01:10]} 16. a3 {[%emt 0:02:30]} Na6 {[%emt 0:01:27]} 17. Rc1 {[%emt 0:01:30]} Rfc8 {[%emt 0:00:33] [#]} 18. Qe2 $146 {[%emt 0:03:22]} ({Predecessor:} 18. dxc6 bxc6 19. Qe2 Rab8 20. c5 Nxc5 21. Nxc5 dxc5 22. Qe3 Be6 23. Qxc5 Qc7 24. Qc3 {0-1 Matthiesen,M (2370)-Kollars,D (2429) Aarhus Chess House 2016 (6)}) 18... Nc7 {[%emt 0:02:27]} 19. Rfe1 {[%emt 0:04:26]} Rab8 {[%emt 0:07:49]} 20. f4 {[%emt 0:01:58]} Ng4 {[%emt 0:04:33]} 21. fxe5 {[%emt 0:01:47]} Nxe5 {[%emt 0:03:25]} 22. Nf4 {[%emt 0:03:44]} (22. Nxe5 $14 Qxe5 23. Kh2) 22... Bg4 $15 {[%emt 0:01:58]} 23. Qe3 {[%emt 0:01:33]} Qd7 {[%emt 0:04:35]} 24. Nf3 {[%emt 0:01:42]} f6 {[%emt 0:04:25]} 25. c5 {[%emt 0:03:41]} Re8 {[%emt 0:04:29][%cal Oc7d5] Black wants to play ...Nxd5!} 26. Red1 {[%emt 0:04:43]} (26. Nh2 $11) 26... dxc5 $1 {[%emt 0:08:19][%cal Oc7d5]} 27. Rxc5 {[%emt 0:01:27]} (27. Rd2 $15) 27... b6 $36 {[%emt 0:01:12][%mdl 2048] Black is really pushing.} (27... Qd6 {keeps more tension.} 28. b4 Nxd5 29. Qf2 axb4 30. axb4 Bxf3 31. Bxf3 Nxf4 32. gxf4 Nxf3+ 33. Qxf3 Qe6) 28. Rcc1 {[%emt 0:00:39] [#] aiming for dxc6.} cxd5 {[%emt 0:00:27]} (28... Nxd5 $1 $17 29. Nxe5 (29. Nxd5 cxd5 30. Qf2 Bxf3 $17) 29... fxe5 30. Nxd5 Bxd1 31. Rxd1 cxd5 32. exd5 Qd6) 29. Qf2 {[%emt 0:03:16][%cal Re4d5]} Qf7 {[%emt 0:03:14]} (29... Qd6 $15 {keeps the upper hand.}) 30. Nxd5 {[%emt 0:01:08] White is more active.} (30. exd5 $16 Rf8 31. Re1) 30... Nxd5 {[%emt 0:01:32]} 31. Rxd5 {[%emt 0:00:15]} Nd7 {[%emt 0:00:48]} 32. Nd4 {[%emt 0:01:06]} Nc5 {[%emt 0:00:57]} (32... Rbc8 $17 33. Rxc8 Rxc8) 33. Nf5 $2 {[%emt 0:01:17][%mdl 8192]} (33. Qc2 $1 $11 {and White is okay.}) 33... Nxe4 $19 {[%emt 0:01:23]} 34. Qd4 {[%emt 0:01:07]} Qe6 {[%emt 0:02:51][%mdl 8192] [#]} (34... Bxf5 $19 {and life is good for Black.} 35. Rxf5 Rbd8 36. Qxb6 Nxg3) 35. Bxe4 {[%emt 0:05:52][%mdl 8192]} (35. Nxg7 $1 $18 Kxg7 36. Bxe4) 35... Qxe4 {[%emt 0:03:26]} 36. Qxe4 {[%emt 0:03:13]} Rxe4 {[%emt 0:05:58]} 37. Rc7 $2 {[%emt 0:01:13]} (37. Rf1) 37... Bxf5 {[%emt 0:00:43]} (37... Re1+ $142 38. Kf2 Re2+ 39. Kf1 Rbe8 40. Rxg7+ Kh8 41. Rxg4 hxg4) 38. Rxf5 {[%emt 0:00:11][%mdl 4096] Endgame KRR-KRR} Re3 {[%emt 0:00:12][%csl LRb3,LRg3]} 39. Kf2 {[%emt 0:00:27]} Rxb3 {[%emt 0:01:03]} 40. Rd5 {[%emt 0:00:13]} Kh7 {[%emt 0:01:45]} ({Inferior is} 40... Rxa3 41. Rdd7 $15) 41. Rxh5+ {[%emt 0:00:35]} Kg6 {[%emt 0:00:07]} 42. Rd5 {[%emt 0:00:32]} Rxa3 {[%emt 0:01:00]} 43. h5+ {[%emt 0:00:17]} (43. Rd4 $142) 43... Kh6 {[%emt 0:00:24]} 44. g4 {[%emt 0:00:20]} b5 {[%emt 0:02:54] White must now prevent ...b4.} 45. Rc6 {[%emt 0:00:21]} Kh7 {[%emt 0:01:14]} 46. Rd7 {[%emt 0:00:29]} Ra2+ {[%emt 0:03:32]} (46... b4 $19 47. Rcc7 Rg8) 47. Kf3 {[%emt 0:00:09]} (47. Kg3 $17 {is a better defense.}) 47... Ra1 {[%emt 0:00:25]} 48. Kf2 {[%emt 0:00:08]} Rf8 {[%emt 0:01:06]} 49. Rcc7 {[%emt 0:00:17]} Rg8 {[%emt 0:00:22] Strongly threatening ...a4.} 50. Rc6 {[%emt 0:00:12]} Ra4 {[%emt 0:03:23]} 51. Kf3 {[%emt 0:00:30]} Ra1 {[%emt 0:04:21]} 52. Kf2 $1 {[%emt 0:00:10]} b4 $2 {[%emt 0:02:52]} (52... Kh6 $19 {And now ...a4 would win.} 53. Rd5 b4 54. g5+ Kxh5 55. gxf6+ g5) 53. Rxf6 $11 {[%emt 0:00:10] The position is equal.} Rd8 {[%emt 0:03:45]} 54. Rb7 {[%emt 0:01:12]} Ra2+ {[%emt 0:01:01]} 55. Ke3 {[%emt 0:00:20]} Ra3+ {[%emt 0:01:23]} 56. Ke4 {[%emt 0:00:56]} Re8+ {[%emt 0:03:22]} 57. Kf4 $1 {[%emt 0:00:28]} Rb8 {[%emt 0:02:52]} 58. Rd7 {[%emt 0:00:34]} Rd8 {[%emt 0:00:19]} 59. Rb7 {[%emt 0:00:25]} Rd4+ {[%emt 0:00:26]} 60. Kg5 $1 {[%emt 0:00:24] White wants to mate with h6.} Rg3 {[%emt 0:00:08]} 61. Rh6+ {[%emt 0:00:09]} Kg8 {[%emt 0:01:52]} 62. Rb8+ {[%emt 0:00:07]} Kf7 {[%emt 0:00:06]} 63. Rb7+ {[%emt 0:00:11] Black had all chances to win. An exciting game.   Weighted Error Value: White=0.38/Black=0.46} 1/2-1/2

[Event "Ramat Gan Masters-A Winter 2023"]
[Site "Ramat Gan/ISR"]
[Date "2023.02.27"]
[Round "6.6"]
[White "Goz, Shachar"]
[Black "Duchan, Yoav"]
[Result "0-1"]
[Annotator "TA"]
[ECO "B07"]
[WhiteElo "1623"]
[BlackElo "1945"]
[PlyCount "114"]
[EventDate "2023.01.17"]
[EventType "swiss"]
[SourceTitle "playchess.com"]
[Source "ChessBase"]
[SourceQuality "1"]
[TimeControl "5400+30"]

{[%evp 9,114,26,103,56,73,41,62,16,4,9,31,-28,24,0,0,-33,-31,-70,-54,-43,-52,-66,0,0,0,0,0,0,6,-126,-107,-95,-141,-144,-139,-119,-127,-138,-128,-139,-71,-62,-20,-349,-276,-485,-482,-481,-463,-460,-439,-517,-498,-587,-583,-727,-717,-715,-721,-710,-613,-1056,-967,-1632,-1675,-1556,-1508,-1322,-1104,-1263,-777,-1089,-1064,-1058,-1036,-1707,-1552,-1595,-1520,-1960,-1804,-12839,-12837,-12843,-12843,-12844,-12844,-29988,-29989,-29989,-29990,-29990,-29991,-29993,-29994,-29994,-29993,-29993,-29993,-29993,-29994,-29994,-29993,-29993,-29994,-29995,-29994]} 1. f4 {[%emt 0:00:01]} g6 {[%emt 0:00:17]} 2. Nf3 {[%emt 0:00:21]} Bg7 {[%emt 0:00:04]} 3. e4 {[%emt 0:00:20]} d6 {[%emt 0:00:22]} 4. Nc3 {[%emt 0:00:26]} Bg4 {[%emt 0:01:36]} 5. h3 {[%emt 0:01:04]} Bd7 {[%emt 0:00:54]} (5... Bxf3 $11 {remains equal.} 6. Qxf3 e6) 6. Bc4 {[%emt 0:00:16] [#] B07: Pirc Defence: Miscellaneous Systems.} (6. d4 $16) 6... Nc6 $146 {[%emt 0:00:50]} ({Predecessor:} 6... e5 7. d3 Nc6 8. a4 Nd4 9. O-O Be6 10. Bxe6 fxe6 11. fxe5 dxe5 12. Ng5 Bf6 {1-0 Melchers,D (1953)-Niedzwiecki,M Mazowiec-chT op 1516 2015 (3.13)}) 7. O-O {[%emt 0:00:22]} Na5 {[%emt 0:03:31]} 8. Qe2 {[%emt 0:05:11]} (8. Be2 $14 {is more appropriate.}) 8... Nxc4 $11 {[%emt 0:16:11]} 9. Qxc4 {[%emt 0:01:36]} c5 {[%emt 0:02:40]} 10. e5 {[%emt 0:17:18]} (10. d4 $14) 10... Be6 {[%emt 0:12:02]} ({Black should try} 10... Nh6) 11. Qb5+ {[%emt 0:02:35]} Qd7 {[%emt 0:04:20]} 12. exd6 {[%emt 0:01:12]} exd6 {[%emt 0:02:53]} 13. Re1 {[%emt 0:02:57][%cal Od2d4]} Qxb5 {[%emt 0:05:50]} 14. Nxb5 {[%emt 0:02:09]} Kd7 {[%emt 0:02:58][%cal Be8d7,Bd7c6,Bc6b5,Bb5c4,Bc4d5][%mdl 32]} 15. d4 {[%emt 0:05:57]} Bd5 {[%emt 0:11:25]} ({Black should play} 15... a6 $15 16. Nc3 cxd4) 16. dxc5 {[%emt 0:02:15]} Bxf3 {[%emt 0:01:01]} 17. gxf3 {[%emt 0:01:02]} dxc5 {[%emt 0:01:29]} 18. Rd1+ {[%emt 0:00:38]} Kc6 {[%emt 0:04:07]} 19. Rd6+ {[%emt 0:05:12]} (19. c4 $11 Bf8 20. b3) 19... Kxb5 $17 {[%emt 0:01:04]} 20. a4+ {[%emt 0:00:01]} Kc4 {[%emt 0:01:42]} 21. Rd3 {[%emt 0:00:23] [#] White wants to mate with b3+.} Bd4+ {[%emt 0:04:20]} 22. Kf1 {[%emt 0:00:55]} Kd5 {[%emt 0:03:22]} 23. c3 {[%emt 0:00:09][%mdl 64] Pin} Kc4 {[%emt 0:00:22]} 24. Ke2 {[%emt 0:01:44] [#]} Re8+ {[%emt 0:01:50]} (24... Bf2 $142 $1 {...Re8+ would be deadly.} 25. b3+ Kxb3 26. Kxf2 Nh6) 25. Kd2 {[%emt 0:00:07]} Bxc3+ {[%emt 0:06:22]} 26. bxc3 $4 {[%emt 0:01:50][%mdl 8192] White does not recover from this.} (26. Rxc3+ $11 Kd5 27. b4 cxb4 28. Rd3+ Ke6 29. Ba3) 26... Nf6 {[%emt 0:01:36]} 27. Rb1 $2 {[%emt 0:05:37]} (27. a5 {only move.}) 27... Rd8 {[%emt 0:00:45]} 28. Rxd8 {[%emt 0:00:20]} Rxd8+ $19 {[%emt 0:00:01][%mdl 4096] Endgame KRB-KRN} 29. Kc2 {[%emt 0:00:08]} b6 {[%emt 0:00:36] aiming for ...Rd3.} 30. Bd2 {[%emt 0:00:42]} Rd3 {[%emt 0:01:41]} 31. Rf1 {[%emt 0:01:29]} Nd5 {[%emt 0:01:51]} 32. Re1 {[%emt 0:01:08] Strongly threatening Re4+.} f5 {[%emt 0:02:10] Prevents Re4+} (32... Rxf3 $2 33. Re4#) 33. h4 {[%emt 0:00:35]} Rxf3 {[%emt 0:00:34]} 34. h5 {[%emt 0:00:22]} Nxc3 {[%emt 0:00:50]} 35. Re7 {[%emt 0:01:35]} Ne4 {[%emt 0:01:29] ...Rf2 is the strong threat.} 36. Bc1 {[%emt 0:01:31]} gxh5 {[%emt 0:02:35]} 37. Rxh7 {[%emt 0:00:01]} Rf2+ {[%emt 0:00:50]} 38. Kd1 {[%emt 0:00:19]} Nc3+ {[%emt 0:00:10]} 39. Ke1 {[%emt 0:00:10]} Re2+ {[%emt 0:00:35]} 40. Kf1 {[%emt 0:01:20]} Ra2 {[%emt 0:03:15]} 41. Be3 {[%emt 0:00:33]} Nd5 {[%emt 0:00:00]} 42. Bf2 {[%emt 0:00:22]} Ra1+ {[%emt 0:00:00]} 43. Kg2 {[%emt 0:00:06]} Rxa4 {[%emt 0:00:00]} 44. Bg3 {[%emt 0:00:07]} b5 {[%emt 0:00:00]} 45. Rxh5 {[%emt 0:00:05]} Ra2+ {[%emt 0:00:02]} 46. Kh3 {[%emt 0:00:24]} b4 {[%emt 0:00:34]} 47. Rxf5 {[%emt 0:00:19]} b3 {[%emt 0:00:08] ( -> ...b2)} 48. Rf7 {[%emt 0:00:09]} b2 {[%emt 0:00:07] Black mates.} 49. Rb7 {[%emt 0:00:09]} Nb4 {[%emt 0:00:07]} 50. f5 {[%emt 0:00:04]} b1=Q {[%emt 0:00:04]} 51. f6 {[%emt 0:00:13]} Qf5+ {[%emt 0:00:17]} 52. Kh4 {[%emt 0:00:05]} Qxf6+ {[%emt 0:00:06]} 53. Kh3 {[%emt 0:00:05]} Qh6+ {[%emt 0:00:23]} 54. Kg4 {[%emt 0:00:06]} Qg6+ {[%emt 0:00:05]} 55. Kh4 {[%emt 0:00:07]} Ra1 {[%emt 0:00:22]} 56. Rxb4+ {[%emt 0:00:07]} cxb4 {[%emt 0:00:06]} 57. Kh3 {[%emt 0:00:13]} Rg1 {[%emt 0:00:12] Weighted Error Value: White=0.70/Black=0.36} 0-1

[Event "Ramat Gan Masters-A Winter 2023"]
[Site "Ramat Gan/ISR"]
[Date "2023.02.27"]
[Round "6.7"]
[White "Lapushnian, Maya"]
[Black "Sobel, Ido"]
[Result "1-0"]
[Annotator "NA RC COMBH"]
[ECO "B12"]
[WhiteElo "1707"]
[BlackElo "1871"]
[PlyCount "67"]
[EventDate "2023.01.17"]
[EventType "swiss"]
[SourceTitle "playchess.com"]
[Source "ChessBase"]
[SourceQuality "1"]
[TimeControl "5400+30"]

{[%evp 8,67,11,28,35,25,20,0,51,45,61,52,43,19,11,0,21,43,19,31,37,26,29,18,25,42,71,32767,32767,-36,73,97,120,110,152,108,90,56,169,221,189,196,632,32767,757,819,1096,1178,1004,584,32767,998,892,887,3678,29982,29992,29993,29995,29996,29996,29997]} 1. e4 {[%emt 0:00:03]} c6 {[%emt 0:00:01]} 2. d4 {[%emt 0:00:09]} d5 {[%emt 0:00:12]} 3. e5 {[%emt 0:00:04]} Bf5 {[%emt 0:00:17]} 4. Nf3 {[%emt 0:00:07]} e6 {[%emt 0:00:08]} 5. Be2 {[%emt 0:00:05]} Nd7 {[%emt 0:00:43]} 6. O-O {[%emt 0:00:08]} Ne7 {[%emt 0:00:13]} 7. Nh4 {[%emt 0:00:08]} h6 {[%emt 0:00:35]} 8. Nxf5 {[%emt 0:03:28]} Nxf5 {[%emt 0:00:02]} 9. c3 {[%emt 0:00:49]} c5 {[%emt 0:00:29]} 10. g4 {[%emt 0:01:51]} (10. Bd3 $14) 10... Nh4 {[%emt 0:03:50]} 11. Na3 {[%emt 0:08:45]} a6 {[%emt 0:02:06]} 12. Nc2 {[%emt 0:01:13]} Qb6 {[%emt 0:01:39]} 13. a4 {[%emt 0:13:16]} Be7 {[%emt 0:03:34]} 14. f4 {[%emt 0:13:36]} cxd4 {[%emt 0:03:58]} 15. cxd4 {[%emt 0:00:41]} Rc8 {[%emt 0:00:13]} 16. Ne3 {[%emt 0:02:54]} g5 {[%emt 0:01:52]} 17. a5 {[%emt 0:04:02]} Qa7 {[%emt 0:00:02]} 18. Qa4 {[%emt 0:02:51]} (18. f5 $16) 18... Rc6 {[%emt 0:04:30]} (18... gxf4 $1 $11 19. Rxf4 O-O 20. Qxd7 Ng6) 19. Ng2 {[%emt 0:07:51]} Nxg2 {[%emt 0:06:54]} 20. Kxg2 {[%emt 0:00:02]} O-O {[%emt 0:00:48]} 21. fxg5 {[%emt 0:02:04]} hxg5 {[%emt 0:00:01] [#]} 22. h4 {[%emt 0:04:08]} gxh4 {[%emt 0:09:50] [#]} ({Black should try} 22... Rfc8 $1 $14) 23. g5 $1 {[%emt 0:01:03]} Rfc8 {[%emt 0:00:54]} 24. Bd3 {[%emt 0:02:07]} Kg7 $2 {[%emt 0:16:28]} (24... Kf8 25. g6 f5) 25. Qd1 {[%emt 0:05:35]} h3+ {[%emt 0:12:51]} 26. Kh2 {[%emt 0:00:36]} Kf8 {[%emt 0:09:04] [#]} 27. Rxf7+ $3 {[%emt 0:01:12] Decoy} Ke8 {[%emt 0:00:01] [#]} 28. Qg4 $1 {[%emt 0:07:50]} Rc2+ {[%emt 0:09:25]} 29. Bxc2 {[%emt 0:10:17]} Rxc2+ {[%emt 0:00:12]} 30. Kxh3 {[%emt 0:00:10]} Kxf7 {[%emt 0:08:30]} 31. g6+ {[%emt 0:01:20]} Kg7 {[%emt 0:01:00]} 32. Qh5 {[%emt 0:00:24]} Nf8 {[%emt 0:00:42]} 33. Bh6+ {[%emt 0:00:17]} Kg8 {[%emt 0:00:02]} 34. Bxf8 {[%emt 0:08:24]} 1-0

[Event "Ramat Gan Masters-A Winter 2023"]
[Site "Ramat Gan/ISR"]
[Date "2023.02.27"]
[Round "6.8"]
[White "Weber, Yonatan"]
[Black "Malachi, Avraham"]
[Result "0-1"]
[Annotator "TA"]
[ECO "C28"]
[WhiteElo "1527"]
[BlackElo "1975"]
[PlyCount "68"]
[EventDate "2023.01.17"]
[EventType "swiss"]
[SourceTitle "playchess.com"]
[Source "ChessBase"]
[SourceQuality "1"]
[TimeControl "5400+30"]

{[%evp 9,68,0,0,0,5,5,8,-14,12,10,25,25,29,29,66,-11,-9,-49,-49,-181,-177,-191,-177,-181,-185,-247,-234,-231,-221,-284,-279,-345,-341,-347,-334,-438,-422,-514,-246,-249,-244,-239,-240,-424,-385,-552,-547,-526,-554,-736,-718,-922,-917,-1998,-1976,-29978,-29979,-29986,-29979,-29978,-29979]} 1. e4 {[%emt 0:00:13]} e5 {[%emt 0:00:10]} 2. Bc4 {[%emt 0:00:09]} Bc5 {[%emt 0:00:05]} 3. Nc3 {[%emt 0:00:10]} Nf6 {[%emt 0:00:32]} 4. d3 {[%emt 0:00:09]} Nc6 {[%emt 0:00:20]} 5. f4 {[%emt 0:00:07]} exf4 {[%emt 0:00:46]} 6. Bxf4 {[%emt 0:00:10] C28: Vienna Game: 2...Nf6 3 Bc4 Nc6.} O-O {[%emt 0:02:03]} 7. Nf3 {[%emt 0:00:19]} d6 {[%emt 0:11:51]} 8. d4 {[%emt 0:00:30] The position is equal.} Bb4 {[%emt 0:01:40]} 9. Bg5 {[%emt 0:00:53] [#]} h6 $146 {[%emt 0:08:45]} ({Predecessor:} 9... Bxc3+ 10. bxc3 h6 11. Bxf6 Qxf6 12. O-O Bg4 13. h3 Bh5 14. g4 Bg6 15. g5 Qf4 {1-0 Helin,M (1972)-Jacobsen,C Gibraltar Masters 8th 2010 (7)}) 10. Bh4 {[%emt 0:08:48]} Bg4 {[%emt 0:01:29]} 11. Qd3 {[%emt 0:04:04] aiming for 0-0.} ({Much worse is} 11. O-O g5 12. Be1 Bxc3 13. Bxc3 Nxe4 $15) 11... Qe7 {[%emt 0:16:45]} 12. Bxf6 {[%emt 0:11:15]} (12. O-O $14 Bxc3 13. bxc3 Qxe4 14. Bxf6 Qxd3 15. Bxd3 gxf6 16. Nd2) 12... Qxf6 $11 {[%emt 0:01:19]} 13. O-O {[%emt 0:00:17]} Bxf3 {[%emt 0:03:08]} 14. e5 {[%emt 0:10:49] Now White is beyond hope.} (14. Nb5 $15) 14... Qh4 $19 {[%emt 0:05:57] [#] ...Bh5 would be deadly.} (14... dxe5 15. Rxf3 e4 16. Nxe4 Qxd4+ 17. Qxd4 Nxd4 18. Rf2 $17) 15. Rxf3 {[%emt 0:01:14]} Qxd4+ {[%emt 0:00:13]} ({Inferior is} 15... dxe5 16. Ne4 Rad8 17. d5 $15) 16. Qxd4 {[%emt 0:59:23]} Nxd4 {[%emt 0:00:04]} 17. Rf4 {[%emt 0:00:00]} (17. Rf2 $142) 17... dxe5 {[%emt 0:01:59]} 18. Re4 {[%emt 0:00:00]} Bd6 {[%emt 0:01:16]} 19. Rf1 {[%emt 0:00:00]} Nxc2 {[%emt 0:03:17]} 20. Nb5 {[%emt 0:00:00]} Bc5+ {[%emt 0:04:09]} 21. Kh1 {[%emt 0:00:00]} c6 {[%emt 0:04:18]} 22. Nc7 {[%emt 0:00:00]} Rac8 {[%emt 0:01:34]} 23. Rxe5 {[%emt 0:00:00]} Bd6 {[%emt 0:06:39]} (23... Ne3 $142 24. Rxc5 Nxf1 25. Bxf1 Rxc7) 24. Re2 {[%emt 0:00:00]} Nd4 {[%emt 0:00:32]} 25. Re4 {[%emt 0:00:00]} Bc5 {[%emt 0:00:42]} 26. Ne8 {[%emt 0:00:00] [#]} (26. b4 {was necessary.} Bxb4 27. Rxd4 Rxc7 28. a4) 26... b5 {[%emt 0:07:03]} ({Weaker is} 26... Rcxe8 27. Rxe8 Rxe8 28. Bxf7+ Kf8 29. Bg6+ Ke7 30. Re1+ Ne6 31. Bxe8 $16) 27. Nd6 {[%emt 0:00:00]} (27. b4 {is a better defense.} Bxb4 28. Bd3) 27... Bxd6 {[%emt 0:02:23]} 28. Rxd4 {[%emt 0:00:00]} Bc5 {[%emt 0:15:31]} 29. Bxf7+ {[%emt 0:00:00]} Rxf7 {[%emt 0:00:00]} 30. Rxf7 {[%emt 0:00:00]} Bxd4 {[%emt 0:00:00] KRB-KR} 31. Rd7 {[%emt 0:00:00]} Bxb2 {[%emt 0:00:00]} 32. Rxa7 {[%emt 0:00:00]} c5 {[%emt 0:00:00][%cal Bc6c5,Bc5c4][%mdl 32] Black mates.} 33. a4 {[%emt 0:00:00]} bxa4 {[%emt 0:00:00]} 34. Rxa4 {[%emt 0:00:00]} c4 {[%emt 0:00:00] Weighted Error Value: White=0.86/Black=0.16 (very precise)} 0-1

[Event "Ramat Gan Masters-A Winter 2023"]
[Site "Ramat Gan/ISR"]
[Date "2023.02.27"]
[Round "6.9"]
[White "Meirovich, Ilay"]
[Black "Neumann, Amit"]
[Result "1-0"]
[Annotator "TA"]
[ECO "E16"]
[WhiteElo "1979"]
[BlackElo "1615"]
[PlyCount "47"]
[EventDate "2023.01.17"]
[EventType "swiss"]
[SourceTitle "playchess.com"]
[Source "ChessBase"]
[SourceQuality "1"]
[TimeControl "5400+30"]

{[%evp 11,47,10,35,27,152,150,146,62,140,61,71,23,26,35,54,61,88,47,25,38,28,-64,-52,-58,-54,-106,-62,-89,13,20,43,52,715,691,1752,1719,1640,1421]} 1. d4 {[%emt 0:00:02]} Nf6 {[%emt 0:00:44]} 2. c4 {[%emt 0:00:17]} e6 {[%emt 0:00:05]} 3. Nf3 {[%emt 0:00:03]} b6 {[%emt 0:00:07]} 4. g3 {[%emt 0:00:04]} Bb7 {[%emt 0:00:04]} 5. Bg2 {[%emt 0:00:02]} Bb4+ {[%emt 0:00:37]} 6. Bd2 {[%emt 0:02:50]} Qe7 {[%emt 0:02:16]} 7. O-O {[%emt 0:00:09] E16: Queen's Indian: 4 g3 Bb7 5 Bg2 Bb4+.} Ne4 {[%emt 0:01:42]} (7... c5 $11 {keeps the balance.}) 8. Bf4 $16 {[%emt 0:06:06]} Bd6 {[%emt 0:06:10]} 9. Be3 {[%emt 0:01:53] [#]} (9. Nfd2 $16 f5 10. Be3) 9... f5 $146 {[%emt 0:09:05]} ({Better is} 9... Nc6 $14) ({Predecessor:} 9... Nc6 10. Nbd2 Nxd2 11. Qxd2 O-O 12. Rac1 Qe8 13. c5 Be7 14. Ne5 Nxe5 15. Bxb7 Rb8 {½-½ Passager,J (2226)-Bollore,J (2124) FRA-chT2 1011 2010 (1.2)}) 10. Qc1 {[%emt 0:03:40]} (10. Ng5 $16) 10... c5 $14 {[%emt 0:05:51]} 11. Rd1 {[%emt 0:01:21]} ({White should play} 11. Ng5 $16) 11... O-O {[%emt 0:01:49][%cal Bh8f8,Bf8f4,Bf4f5][%mdl 32]} 12. Nc3 {[%emt 0:05:53]} Nxc3 {[%emt 0:01:11]} 13. Qxc3 {[%emt 0:02:13]} f4 {[%emt 0:06:28]} 14. gxf4 {[%emt 0:09:14]} (14. dxc5 {seems wilder.} bxc5 15. Qd3 fxe3 16. Qxd6 exf2+ 17. Kxf2 Qf6 18. Kg1) 14... Bxf4 {[%emt 0:03:18]} 15. Bxf4 {[%emt 0:00:02]} Rxf4 {[%emt 0:00:23]} 16. d5 {[%emt 0:00:01]} (16. dxc5 $11 bxc5 17. Qd3) 16... exd5 {[%emt 0:01:23] White must now prevent ...d4.} (16... d6 $5 {[%cal Re6d5]}) 17. cxd5 {[%emt 0:01:10]} d6 {[%emt 0:02:51]} (17... Qxe2 $2 18. Re1 Rc4 19. Rxe2 $18) 18. Qd2 {[%emt 0:09:59]} (18. Qe3 $15 Qxe3 19. fxe3) 18... Rf5 {[%emt 0:02:13][%cal Ob8d7]} 19. e4 {[%emt 0:01:13] [#]} Qxe4 {[%emt 0:01:40]} (19... Rh5 $1 $17) 20. Re1 $36 {[%emt 0:00:03][%mdl 2048] White has the initiative.} Qg4 {[%emt 0:01:00]} (20... Qxd5 $2 21. Re8+ Rf8 22. Rxf8+ Kxf8 23. Qf4+ Qf7 24. Qxf7+ Kxf7 25. Ng5+ {[%mdl 64] Discovered Attack, Double Attack} Kg6 26. Bxb7 Kxg5 27. Bxa8 $18) 21. Re8+ {[%emt 0:02:09]} Kf7 $2 {[%emt 0:01:47][%mdl 8192]} (21... Rf8 $14 22. Re7 Bc8) 22. Qe2 {[%emt 0:06:35][%csl Gd5,Ge8][%cal Re2e6] White is clearly winning.} Bxd5 {[%emt 0:01:58][%cal Og4g2] [#] Hoping for ...Qxg2+!} 23. Ne5+ $1 {[%emt 0:00:03][%mdl 576] Discovered Attack} Rxe5 {[%emt 0:02:32]} (23... Kxe8 24. Nxg4+) 24. Qxg4 {[%emt 0:00:02] Weighted Error Value: White=0.31/Black=0.39} 1-0